bitfinex/quotes_BTCUSD_20240821
["timestamp","ask_amount","ask_price","bid_price","bid_amount"]
[1724268868987,0.09629524,61281.0,61280.0,0.177185]
[1724268869225,0.09629524,61281.0,61280.0,0.014]
[1724268869457,0.09629524,61281.0,61277.0,0.326381]
[1724268869711,0.09629524,61281.0,61280.0,0.66755798]
[1724268869982,0.09629524,61281.0,61280.0,1.32029798]
[1724268870469,0.09629524,61281.0,61280.0,1.31329798]
[1724268870873,0.09629524,61281.0,61280.0,1.30629798]
[1724268871354,0.09629524,61281.0,61280.0,1.33529798]
[1724268871566,0.09629524,61281.0,61280.0,1.64766798]
[1724268871771,0.09629524,61281.0,61280.0,1.42829798]
[1724268871978,0.09629524,61281.0,61280.0,1.42929798]
[1724268872406,0.09583524,61281.0,61280.0,1.41529798]
[1724268872608,0.09583524,61281.0,61280.0,1.41729798]
[1724268872815,0.09583524,61281.0,61280.0,1.42429798]
[1724268873021,0.09583524,61281.0,61280.0,1.41629798]
[1724268873244,0.09583524,61281.0,61280.0,1.40929798]
[1724268873453,0.09583524,61281.0,61280.0,1.45429798]
[1724268873872,0.09583524,61281.0,61280.0,1.42329798]
[1724268874244,0.09583524,61281.0,61280.0,1.76666798]
[1724268874454,0.09583524,61281.0,61280.0,1.79466798]
[1724268874855,0.09583524,61281.0,61280.0,1.78066798]
[1724268875055,0.09583524,61281.0,61280.0,1.77926662]
[1724268875301,0.1,61292.0,61291.0,1.142092]
[1724268875457,0.1,61292.0,61291.0,1.30609498]
[1724268876955,0.1,61292.0,61291.0,1.32109498]
[1724268877173,0.1,61292.0,61291.0,1.31309498]
[1724268877393,0.1,61292.0,61291.0,1.31409498]
[1724268877809,0.12558348,61292.0,61291.0,0.82378]
[1724268878007,0.12558348,61292.0,61291.0,0.497468]
[1724268878235,1.18094248,61292.0,61291.0,0.008]
[1724268878869,1.50724848,61292.0,61291.0,0.008]
[1724268879302,1.18094248,61292.0,61291.0,0.008]
[1724268879514,0.69148348,61292.0,61291.0,0.015]
[1724268879712,0.69148348,61292.0,61291.0,0.170156]
[1724268879914,0.69148348,61292.0,61291.0,0.163156]
[1724268880116,0.69148348,61292.0,61291.0,0.81578]
[1724268880318,0.69148348,61292.0,61289.0,0.326321]
[1724268880517,0.69148348,61292.0,61290.0,0.163156]
[1724268880745,0.69148348,61292.0,61291.0,0.163156]
[1724268880918,0.69148348,61292.0,61291.0,0.002]
[1724268881122,0.69148348,61292.0,61291.0,0.004]
[1724268881584,0.69152348,61292.0,61291.0,0.002]
[1724268882356,0.69152348,61292.0,61291.0,0.163156]
[1724268882568,0.69152348,61292.0,61291.0,0.489468]
[1724268883212,0.69152348,61292.0,61291.0,0.163156]
[1724268883367,0.69152348,61292.0,61291.0,0.165156]
[1724268883573,0.69152348,61292.0,61291.0,0.002]
[1724268883768,0.69152348,61292.0,61291.0,0.165156]
[1724268883991,0.69152348,61292.0,61291.0,0.004]
[1724268884194,0.69436683,61292.0,61291.0,0.004]
[1724268884804,0.69436683,61292.0,61291.0,0.167156]
[1724268885406,0.69436683,61292.0,61291.0,0.165156]
[1724268885628,0.69436683,61292.0,61291.0,0.167156]
[1724268885810,0.69436683,61292.0,61291.0,0.002]
[1724268886064,0.69436683,61292.0,61291.0,0.004]
[1724268886501,0.69436683,61292.0,61291.0,0.167156]
[1724268886708,0.69436683,61292.0,61291.0,0.165156]
[1724268886920,0.69436683,61292.0,61291.0,0.81578]
[1724268886921,0.50646683,61292.0,61291.0,0.81578]
[1724268887124,0.50646683,61292.0,61291.0,0.81778]
[1724268887125,0.50362348,61292.0,61291.0,0.81778]
[1724268887326,0.50362348,61292.0,61291.0,1.146092]
[1724268887539,0.50362348,61292.0,61291.0,1.144092]
[1724268887756,0.12562348,61292.0,61291.0,1.31009498]
[1724268887966,0.10004,61292.0,61291.0,2.29203098]
[1724268888175,0.10004,61292.0,61291.0,1.73640698]
[1724268888387,0.10004,61292.0,61291.0,2.06471898]
[1724268888843,0.10004,61292.0,61291.0,1.73640698]
[1724268889051,0.10004,61292.0,61291.0,1.73740698]
[1724268889262,0.10004,61292.0,61291.0,1.73940698]
[1724268889520,0.10004,61292.0,61291.0,1.73240698]
[1724268889730,0.10004,61292.0,61291.0,0.503468]
[1724268889946,0.10004,61292.0,61291.0,0.182156]
[1724268890210,0.10004,61292.0,61291.0,0.16400298]
[1724268890425,0.07267424,61300.0,61291.0,0.16400298]
[1724268890426,0.07267424,61300.0,61299.0,0.489403]
[1724268890640,0.07267424,61300.0,61299.0,1.30694398]
[1724268891304,0.07267424,61300.0,61299.0,1.30594398]
[1724268892364,0.07267424,61300.0,61299.0,0.97967498]
[1724268892571,0.0001,61304.0,61303.0,0.519372]
[1724268892777,0.0001,61304.0,61303.0,1.43787098]
[1724268892984,0.0001,61304.0,61303.0,1.43587098]
[1724268893193,0.0001,61304.0,61303.0,1.30587098]
[1724268894867,0.0001,61304.0,61303.0,0.97962298]
[1724268895289,0.02567724,61304.0,61303.0,0.99162298]
[1724268895925,0.02567724,61304.0,61303.0,0.65337498]
[1724268896103,0.02567724,61304.0,61303.0,0.66737498]
[1724268896590,0.02567724,61304.0,61303.0,0.97962298]
[1724268897253,0.725853,61303.0,61287.0,0.326331]
[1724268897471,0.725853,61303.0,61272.0,0.034]
[1724268897472,0.3996,61296.0,61276.0,0.0003929]
[1724268897706,0.3589,61290.0,61280.0,0.16490938]
[1724268897911,0.3996,61288.0,61280.0,0.16490938]
[1724268898117,0.42518748,61288.0,61280.0,0.16490938]
[1724268898345,0.42518748,61288.0,61281.0,0.16318]
[1724268898585,0.42518748,61288.0,61280.0,0.16490938]
[1724268898586,0.42518748,61288.0,61280.0,0.0009064]
[1724268898800,0.42518748,61288.0,61280.0,0.0019064]
[1724268898801,1.399512,61281.0,61280.0,0.0019064]
[1724268899028,1.88987998,61281.0,61280.0,0.0019064]
[1724268899245,1.173147,61281.0,61280.0,0.0009064]
[1724268899457,1.71210865,61281.0,61280.0,0.0009064]
[1724268899894,0.002,61274.0,61243.0,0.0009064]
[1724268900105,0.4027,61260.0,61255.0,0.49229154]
[1724268900319,0.4027,61260.0,61243.0,0.0009064]
[1724268900320,0.3985,61255.0,61243.0,0.0009064]
[1724268900545,0.16400298,61260.0,61243.0,0.0009064]
[1724268900546,0.5883,61247.0,61243.0,0.0009064]
[1724268900753,0.5883,61247.0,61244.0,0.16400298]
[1724268900969,0.5883,61247.0,61246.0,0.163275]
[1724268901187,0.02560286,61253.0,61252.0,0.163259]
[1724268901406,0.02560286,61253.0,61252.0,0.16400298]
[1724268902079,0.02560286,61253.0,61243.0,0.0009064]
[1724268902293,0.003,61247.0,61246.0,0.816376]
[1724268902506,0.003,61247.0,61246.0,1.30692998]
[1724268902724,0.02560286,61253.0,61252.0,0.816297]
[1724268902999,0.03360286,61253.0,61252.0,1.30981898]
[1724268903220,0.03360286,61253.0,61252.0,1.53881898]
[1724268903221,0.008,61253.0,61252.0,1.53881898]
[1724268903435,0.008,61253.0,61252.0,1.99133798]
[1724268903867,0.008,61253.0,61252.0,1.64081898]
[1724268904077,0.008,61253.0,61252.0,1.60681898]
[1724268904291,0.40819769,61275.0,61274.0,0.163201]
[1724268904516,0.3826,61275.0,61274.0,0.16400298]
[1724268904769,4e-05,61281.0,61280.0,0.163185]
[1724268904982,4e-05,61281.0,61280.0,0.65351798]
[1724268905196,0.326197,61313.0,61280.0,0.49037298]
[1724268905414,0.49229154,61297.0,61293.0,0.163149]
[1724268905618,0.1802,61303.0,61295.0,0.163144]
[1724268905833,0.1802,61303.0,61296.0,0.16400298]
[1724268906058,0.1802,61303.0,61287.0,0.326332]
[1724268906265,0.326275,61298.0,61287.0,0.16400298]
[1724268906472,0.163136,61299.0,61288.0,0.16400298]
[1724268906691,0.163137,61298.0,61289.0,0.16316]
[1724268906889,0.163132,61300.0,61290.0,0.16400298]
[1724268907097,0.163132,61300.0,61291.0,0.163155]
[1724268907312,0.163132,61300.0,61289.0,0.326321]
[1724268907313,0.163132,61300.0,61292.0,0.32715598]
[1724268907521,0.163128,61302.0,61292.0,0.16400298]
[1724268907730,0.326254,61302.0,61292.0,0.16400298]
[1724268907932,0.163132,61300.0,61292.0,0.16400298]
[1724268908141,0.326254,61302.0,61292.0,0.16400298]
[1724268908142,0.163129,61302.0,61293.0,0.16315]
[1724268908351,0.4077,61301.0,61294.0,0.32714798]
[1724268908573,0.4077,61301.0,61288.0,0.326327]
[1724268908762,0.57083,61301.0,61289.0,0.16400298]
[1724268908971,0.163132,61300.0,61292.0,0.001]
[1724268909180,0.1410656,61300.0,61292.0,0.001]
[1724268909408,0.163138,61298.0,61292.0,0.001]
[1724268909618,0.4077,61301.0,61292.0,0.001]
[1724268909839,0.163136,61299.0,61292.0,0.001]
[1724268910053,0.163132,61300.0,61292.0,0.001]
[1724268910260,0.4077,61301.0,61295.0,0.32629]
[1724268910496,0.4077,61301.0,61297.0,0.163139]
[1724268910678,0.4077,61301.0,61296.0,0.163142]
[1724268910927,0.4077,61301.0,61295.0,0.16400298]
[1724268910928,0.43328273,61301.0,61295.0,0.16400298]
[1724268911143,0.43328273,61301.0,61297.0,0.49028198]
[1724268911349,0.43328273,61301.0,61300.0,0.163132]
[1724268911576,0.43328273,61301.0,61299.0,0.163133]
[1724268912134,0.43328273,61301.0,61300.0,0.97966298]
[1724268912369,0.43332273,61301.0,61300.0,0.97966298]
[1724268913132,0.43332273,61301.0,61300.0,0.65339898]
[1724268913624,0.43332273,61301.0,61300.0,0.65357512]
[1724268913874,0.43332273,61301.0,61300.0,0.32731112]
[1724268914626,0.43332273,61301.0,61300.0,0.97983912]
[1724268914627,0.02562273,61301.0,61300.0,0.97983912]
[1724268916571,0.02562273,61301.0,61300.0,1.73436712]
[1724268916822,1e-08,61301.0,61300.0,2.28453112]
[1724268917088,1e-08,61301.0,61300.0,2.28653112]
[1724268917337,1e-08,61301.0,61300.0,2.29153112]
[1724268917547,0.00082401,61301.0,61300.0,2.29153112]
[1724268917761,0.00082401,61301.0,61300.0,1.93426712]
[1724268917970,0.00082401,61301.0,61300.0,1.93726712]
[1724268918220,0.00182401,61301.0,61300.0,1.97326712]
[1724268918646,0.00182401,61301.0,61300.0,2.29953112]
[1724268918857,0.00182401,61301.0,61300.0,1.97326712]
[1724268919281,0.00182401,61301.0,61300.0,2.29953112]
[1724268919711,0.00182401,61301.0,61300.0,2.29935498]
[1724268920825,0.00824,61306.0,61300.0,2.29935498]
[1724268920826,1e-08,61304.0,61303.0,1.799364]
[1724268921028,1e-08,61304.0,61303.0,2.41261498]
[1724268921943,0.00100001,61304.0,61303.0,2.4732209]
[1724268922187,0.00100001,61304.0,61303.0,2.42561498]
[1724268922597,0.00100001,61304.0,61303.0,2.47318455]
[1724268923026,0.00100001,61304.0,61303.0,2.42561498]
[1724268923027,1e-08,61304.0,61303.0,2.42561498]
[1724268923242,1e-08,61304.0,61303.0,2.47318455]
[1724268923455,0.00824,61306.0,61305.0,0.168118]
[1724268923665,0.00824,61306.0,61305.0,2.13384832]
[1724268924296,0.1442,61312.0,61311.0,1.502922]
[1724268924512,0.01706407,61317.0,61314.0,0.1630946]
[1724268924513,0.1445939,61315.0,61314.0,0.1630946]
[1724268924725,0.1445939,61315.0,61314.0,1.40566458]
[1724268924941,0.1445939,61315.0,61314.0,1.95015358]
[1724268925154,0.17016366,61315.0,61314.0,1.95015358]
[1724268925370,0.17016366,61315.0,61314.0,1.73185298]
[1724268926447,0.17016366,61315.0,61314.0,1.73585298]
[1724268926661,0.17016366,61315.0,61314.0,1.75685298]
[1724268926894,0.12066463,61315.0,61314.0,2.24464198]
[1724268927149,0.00824,61342.0,61314.0,2.24464198]
[1724268927150,0.0009994,61360.0,61349.0,1.14101]
[1724268927355,0.41284,61354.0,61349.0,0.815007]
[1724268927594,0.0009994,61347.0,61335.0,0.13]
[1724268927820,0.162975,61359.0,61335.0,0.13]
[1724268927821,0.01705758,61387.0,61385.0,0.488718]
[1724268928044,0.01705758,61387.0,61360.0,0.32594]
[1724268928045,0.02112,61416.0,61409.0,0.163802]
[1724268928263,0.02112,61416.0,61415.0,0.816132]
[1724268928508,0.69812,61420.0,61419.0,0.162816]
[1724268928744,0.69812,61420.0,61419.0,0.488448]
[1724268928949,0.69812,61420.0,61419.0,0.162816]
[1724268929399,0.69812,61420.0,61410.0,0.002]
[1724268929400,0.69812,61420.0,61410.0,0.325679]
[1724268929651,0.69812,61420.0,61419.0,0.162816]
[1724268929856,0.69812,61420.0,61407.0,0.002]
[1724268930067,0.69812,61420.0,61403.0,0.2]
[1724268930068,0.69812,61420.0,61405.0,0.002]
[1724268930292,0.69812,61420.0,61404.0,0.023]
[1724268930293,0.72365276,61420.0,61419.0,0.65445098]
[1724268930512,0.72365276,61420.0,61419.0,0.16400298]
[1724268930724,0.72365276,61420.0,61419.0,0.52163498]
[1724268930943,0.72365276,61420.0,61419.0,0.65445098]
[1724268931159,0.72369276,61420.0,61419.0,0.16400298]
[1724268931612,1.10429276,61420.0,61419.0,0.16400298]
[1724268932563,0.72369276,61420.0,61419.0,0.16600298]
[1724268933204,0.72369276,61420.0,61419.0,0.16400298]
[1724268933420,0.72369276,61420.0,61419.0,0.17000298]
[1724268933644,0.72369276,61420.0,61419.0,0.17200298]
[1724268933858,0.72369276,61420.0,61419.0,0.16400298]
[1724268934937,0.72369276,61420.0,61419.0,0.16600298]
[1724268935168,0.72369276,61420.0,61419.0,0.16400298]
[1724268935384,0.88650576,61420.0,61419.0,0.16400298]
[1724268935602,0.4026,61410.0,61393.0,0.002]
[1724268935810,0.4026,61410.0,61404.0,0.49229154]
[1724268936037,0.325701,61406.0,61405.0,0.16400298]
[1724268936254,0.814252,61406.0,61405.0,0.16400298]
[1724268936505,0.32852716,61409.0,61408.0,0.488535]
[1724268936506,0.02837633,61409.0,61408.0,0.488535]
[1724268936717,0.5,61430.0,61419.0,0.164816]
[1724268936932,0.5,61430.0,61419.0,0.16600298]
[1724268937147,0.5,61430.0,61419.0,0.16500298]
[1724268937148,0.4059,61421.0,61419.0,0.16500298]
[1724268937391,0.4059,61421.0,61419.0,0.16700298]
[1724268937619,0.4059,61421.0,61419.0,0.16600298]
[1724268938054,0.095361,61427.0,61419.0,0.18000298]
[1724268938501,1.048873,61420.0,61419.0,0.16400298]
[1724268938712,1.048873,61420.0,61410.0,0.002]
[1724268938713,0.325674,61411.0,61410.0,0.002]
[1724268938931,0.814185,61411.0,61410.0,0.16400298]
[1724268939156,0.814185,61411.0,61397.0,0.002]
[1724268939157,0.00099942,61408.0,61397.0,0.002]
[1724268939381,0.488614,61398.0,61397.0,0.002]
[1724268939597,0.409,61410.0,61397.0,0.002]
[1724268939598,0.325697,61407.0,61397.0,0.002]
[1724268939823,0.1865,61407.0,61398.0,0.002]
[1724268940042,0.162851,61406.0,61398.0,0.002]
[1724268940267,0.1865,61407.0,61398.0,0.002]
[1724268941192,0.00099942,61406.0,61398.0,0.002]
[1724268941415,0.32671242,61404.0,61381.0,0.65520654]
[1724268941624,0.32671242,61404.0,61382.0,0.1]
[1724268941625,0.162874,61397.0,61382.0,0.1]
[1724268941845,0.4142,61396.0,61390.0,0.16600298]
[1724268942051,0.4142,61396.0,61375.0,0.325861]
[1724268942052,0.4142,61396.0,61393.0,0.002]
[1724268942270,0.4142,61396.0,61395.0,0.002]
[1724268942500,0.4142,61396.0,61395.0,0.16600298]
[1724268943129,0.577077,61396.0,61395.0,0.16600298]
[1724268943341,0.4142,61396.0,61395.0,0.16600298]
[1724268943995,0.4142,61396.0,61395.0,0.16700298]
[1724268944203,0.4142,61396.0,61395.0,0.16500298]
[1724268944420,0.4142,61396.0,61390.0,0.002]
[1724268944421,0.00099942,61393.0,61390.0,0.002]
[1724268944660,0.325708,61405.0,61363.0,0.64699154]
[1724268944661,0.00099942,61383.0,61377.0,0.002]
[1724268944884,0.00099942,61383.0,61363.0,0.49229154]
[1724268944885,0.3929,61382.0,61379.0,0.49229154]
[1724268945134,0.3929,61382.0,61380.0,0.16400298]
[1724268945135,0.162918,61381.0,61380.0,0.16400298]
[1724268945567,0.74427659,61382.0,61373.0,0.002]
[1724268945568,0.41944801,61382.0,61373.0,0.002]
[1724268945789,0.00099942,61376.0,61374.0,0.16400298]
[1724268946030,0.00099942,61376.0,61357.0,0.684856]
[1724268946031,0.00099942,61370.0,61350.0,0.3589]
[1724268946288,0.00099942,61370.0,61369.0,0.002]
[1724268946289,0.67153742,61370.0,61369.0,0.002]
[1724268946497,0.1817,61370.0,61369.0,0.16600298]
[1724268946717,0.3929,61374.0,61373.0,0.002]
[1724268946921,0.00099942,61384.0,61373.0,0.002]
[1724268946922,0.4082,61382.0,61381.0,0.002]
[1724268947155,0.4082,61382.0,61381.0,0.16600298]
[1724268947582,0.43374718,61382.0,61381.0,0.32891898]
[1724268947800,0.43374718,61382.0,61381.0,0.65475198]
[1724268947801,0.02554718,61382.0,61381.0,0.65475198]
[1724268948028,0.02554718,61382.0,61360.0,0.2]
[1724268948029,0.32688042,61372.0,61339.0,0.1643]
[1724268948250,0.32688042,61372.0,61338.0,0.1507]
[1724268948251,0.4028,61358.0,61350.0,0.48729154]
[1724268948462,0.4028,61363.0,61350.0,0.48729154]
[1724268948681,0.4028,61363.0,61348.0,0.16400298]
[1724268949153,0.02555648,61360.0,61348.0,0.16400298]
[1724268949369,0.00099942,61358.0,61348.0,0.16400298]
[1724268949586,0.35150248,61360.0,61348.0,0.16400298]
[1724268949587,0.02555648,61360.0,61348.0,0.16400298]
[1724268949807,0.02555648,61360.0,61356.0,0.162982]
[1724268950239,0.02555648,61360.0,61354.0,0.325973]
[1724268950488,0.02555648,61360.0,61349.0,0.326002]
[1724268950728,0.02555648,61360.0,61348.0,0.16600298]
[1724268950968,0.02555648,61360.0,61352.0,0.325983]
[1724268951217,0.02555648,61360.0,61351.0,0.325989]
[1724268951459,0.02555648,61360.0,61348.0,0.16600298]
[1724268951700,0.02555648,61360.0,61351.0,0.162995]
[1724268951936,0.02555648,61360.0,61353.0,0.162988]
[1724268952184,0.02555648,61360.0,61354.0,0.162988]
[1724268952418,0.02555648,61360.0,61348.0,0.16400298]
[1724268952658,0.02555648,61360.0,61350.0,0.325997]
[1724268952912,0.02555648,61360.0,61359.0,0.162975]
[1724268953151,0.02555648,61360.0,61353.0,0.325977]
[1724268953395,0.02555648,61360.0,61357.0,0.162978]
[1724268953622,0.02555648,61360.0,61352.0,0.162992]
[1724268953851,0.02555648,61360.0,61352.0,0.162993]
[1724268954089,0.02555648,61360.0,61348.0,0.16400298]
[1724268954090,0.00099942,61357.0,61348.0,0.16400298]
[1724268954323,0.02555648,61360.0,61353.0,0.162989]
[1724268954550,0.00099942,61358.0,61350.0,0.162998]
[1724268954792,0.00099942,61358.0,61336.0,0.009042]
[1724268954793,0.00099942,61355.0,61338.0,0.326059]
[1724268955022,0.00099942,61355.0,61346.0,0.163009]
[1724268955263,0.00099942,61355.0,61347.0,0.16400298]
[1724268955483,0.02556001,61353.0,61351.0,0.162995]
[1724268955700,0.02556001,61353.0,61347.0,0.16400298]
[1724268956129,0.02556001,61353.0,61348.0,0.326008]
[1724268956342,0.02556001,61353.0,61347.0,0.16400298]
[1724268956580,0.00099942,61351.0,61343.0,0.326031]
[1724268956790,0.00099942,61351.0,61348.0,0.163002]
[1724268957002,0.00099942,61352.0,61348.0,0.163003]
[1724268957219,0.02556001,61353.0,61349.0,0.163]
[1724268957220,0.00099942,61351.0,61349.0,0.163]
[1724268957429,0.40339942,61350.0,61348.0,0.004]
[1724268957646,0.00099942,61349.0,61348.0,0.004]
[1724268957883,0.00099942,61349.0,61348.0,0.163004]
[1724268958106,0.4024,61350.0,61348.0,0.163004]
[1724268958323,0.4024,61350.0,61349.0,0.163001]
[1724268958533,0.40339942,61350.0,61349.0,0.163001]
[1724268958743,0.4024,61350.0,61349.0,0.489004]
[1724268958980,0.4024,61350.0,61349.0,0.163001]
[1724268958981,0.40339942,61350.0,61349.0,0.163001]
[1724268959459,0.00099942,61349.0,61348.0,0.169004]
[1724268959684,0.40339942,61350.0,61349.0,0.163001]
[1724268959901,0.4024,61350.0,61349.0,0.815007]
[1724268960373,0.4024,61350.0,61349.0,1.30501298]
[1724268960593,4e-05,61351.0,61350.0,0.814995]
[1724268960820,4e-05,61351.0,61350.0,1.30499598]
[1724268961067,0.02556001,61353.0,61350.0,1.30499598]
[1724268961068,1e-08,61353.0,61352.0,1.172954]
[1724268961281,0.387,61365.0,61352.0,1.172954]
[1724268961282,0.387,61365.0,61364.0,0.162961]
[1724268961507,0.387,61365.0,61364.0,0.97880998]
[1724268961741,0.387,61365.0,61364.0,1.30473298]
[1724268962243,0.387,61377.0,61375.0,0.814662]
[1724268962485,0.387,61377.0,61375.0,0.65279998]
[1724268962697,0.00099942,61375.0,61370.0,0.162945]
[1724268962920,0.00099942,61375.0,61356.0,0.328962]
[1724268963139,0.00099942,61375.0,61374.0,0.162935]
[1724268963365,0.28803942,61377.0,61370.0,0.325889]
[1724268963582,0.28803942,61377.0,61364.0,0.003]
[1724268963818,0.28803942,61377.0,61376.0,0.16293]
[1724268964044,0.68467,61393.0,61376.0,0.16293]
[1724268964045,0.1829,61390.0,61389.0,0.162895]
[1724268964314,0.1829,61390.0,61389.0,0.65268898]
[1724268964542,0.162888,61407.0,61389.0,0.65268898]
[1724268964543,0.00283841,61398.0,61395.0,0.814397]
[1724268964779,0.1829,61400.0,61395.0,0.97839998]
[1724268965008,0.00283795,61406.0,61395.0,1.30415898]
[1724268965240,0.02558013,61396.0,61395.0,1.30415898]
[1724268967262,0.02558013,61396.0,61395.0,0.006]
[1724268967490,0.79145713,61396.0,61395.0,0.006]
[1724268967706,1.44296513,61396.0,61395.0,0.006]
[1724268967920,0.62858013,61396.0,61395.0,0.006]
[1724268968199,0.62858013,61396.0,61395.0,0.168879]
[1724268968402,0.62858013,61396.0,61391.0,0.162889]
[1724268968613,0.62858013,61396.0,61388.0,0.325794]
[1724268968614,0.62858013,61396.0,61394.0,0.16288]
[1724268968818,0.62858013,61396.0,61389.0,0.32579]
[1724268968819,0.62858013,61396.0,61395.0,0.01]
[1724268969237,0.62858013,61396.0,61389.0,0.32579]
[1724268969450,0.62858013,61396.0,61394.0,0.162881]
[1724268970287,0.62858013,61396.0,61395.0,0.001]
[1724268970500,1.12521113,61396.0,61395.0,0.001]
[1724268970937,1.45096513,61396.0,61395.0,0.001]
[1724268971153,0.79945713,61396.0,61395.0,0.001]
[1724268971800,0.162879,61395.0,61385.0,0.32619921]
[1724268972043,0.63658013,61396.0,61395.0,0.162879]
[1724268972471,0.63658013,61396.0,61391.0,0.325776]
[1724268972679,0.63658013,61396.0,61395.0,0.488638]
[1724268972890,0.63658013,61396.0,61395.0,0.489638]
[1724268973102,0.63658013,61396.0,61395.0,0.815397]
[1724268973394,0.63658013,61396.0,61395.0,0.488638]
[1724268973604,0.63658013,61396.0,61385.0,0.00039221]
[1724268973816,0.415,61393.0,61386.0,0.162902]
[1724268974029,0.415,61393.0,61387.0,0.162899]
[1724268974713,0.415,61393.0,61388.0,0.162896]
[1724268974932,0.415,61393.0,61387.0,0.1629]
[1724268975578,0.415,61393.0,61385.0,0.32620121]
[1724268975791,0.415,61393.0,61385.0,0.00039221]
[1724268976009,0.415,61393.0,61389.0,0.162894]
[1724268976634,0.415,61393.0,61385.0,0.00039221]
[1724268976846,0.162888,61392.0,61385.0,0.00039221]
[1724268977063,0.3999,61391.0,61385.0,0.00039221]
[1724268977289,0.3999,61391.0,61390.0,0.162892]
[1724268977503,0.3999,61391.0,61390.0,0.488677]
[1724268977718,0.3999,61391.0,61390.0,0.814462]
[1724268977929,0.3999,61391.0,61390.0,0.162892]
[1724268979215,0.3999,61391.0,61388.0,0.162897]
[1724268979457,0.3999,61391.0,61385.0,0.32619921]
[1724268979748,0.3999,61391.0,61385.0,0.00039221]
[1724268979749,0.325787,61390.0,61385.0,0.00039221]
[1724268979953,0.87651,61386.0,61385.0,0.00039221]
[1724268980375,0.550703,61386.0,61385.0,0.00039221]
[1724268980590,0.90205826,61386.0,61385.0,0.00039221]
[1724268980804,1.90497524,61386.0,61385.0,0.00039221]
[1724268981240,1.57916824,61386.0,61385.0,0.00039221]
[1724268981451,1.90497524,61386.0,61385.0,0.00039221]
[1724268982517,1.90497524,61386.0,61385.0,0.00139221]
[1724268983361,1.57916824,61386.0,61385.0,0.00139221]
[1724268983577,0.60064826,61386.0,61385.0,0.00139221]
[1724268984000,0.76355126,61386.0,61385.0,0.00139221]
[1724268984418,0.60064826,61386.0,61385.0,0.00139221]
[1724268984636,0.60064826,61386.0,61385.0,0.00039221]
[1724268984849,0.60064826,61386.0,61385.0,0.00139221]
[1724268985071,0.60068826,61386.0,61385.0,0.00139221]
[1724268985283,0.76359126,61386.0,61385.0,0.00139221]
[1724268985489,0.60068826,61386.0,61385.0,0.00039221]
[1724268985699,0.60068826,61386.0,61385.0,0.00139221]
[1724268985913,0.60068826,61386.0,61385.0,0.16429821]
[1724268986177,0.02558826,61386.0,61385.0,0.81492221]
[1724268986629,0.02558826,61386.0,61385.0,0.81592221]
[1724268987094,4e-05,61386.0,61385.0,1.14173421]
[1724268987746,4e-05,61386.0,61385.0,1.30573719]
[1724268987963,4e-05,61386.0,61385.0,1.63054919]
[1724268988826,0.000826,61391.0,61390.0,1.140247]
[1724268989046,0.000826,61391.0,61390.0,1.30424998]
[1724268989282,0.325645,61417.0,61390.0,1.30424998]
[1724268989283,0.698982,61420.0,61400.0,0.03]
[1724268989490,0.698982,61420.0,61390.0,0.7352112]
[1724268989491,0.698982,61420.0,61419.0,0.162816]
[1724268989724,0.698982,61420.0,61419.0,1.33698298]
[1724268990008,0.698982,61420.0,61419.0,2.33687898]
[1724268990009,0.67345443,61420.0,61419.0,2.33687898]
[1724268990260,0.67345443,61420.0,61419.0,2.48677898]
[1724268990504,0.52355443,61420.0,61419.0,2.27454698]
[1724268990713,0.52355443,61420.0,61419.0,2.37454698]
[1724268990924,0.54908082,61420.0,61419.0,2.37454698]
[1724268991342,0.54908082,61420.0,61419.0,2.35154698]
[1724268991552,0.54908082,61420.0,61419.0,2.36554698]
[1724268992173,0.54908082,61420.0,61419.0,2.35154698]
[1724268992392,0.54908082,61420.0,61419.0,2.36554698]
[1724268992845,0.00039672,61442.0,61426.0,0.03]
[1724268993062,3.6e-07,61435.0,61434.0,0.913576]
[1724268993279,0.00039672,61442.0,61441.0,0.813787]
[1724268993491,0.00039672,61442.0,61434.0,0.16400298]
[1724268993741,0.00039672,61442.0,61428.0,0.325582]
[1724268993993,0.1888,61440.0,61420.0,0.3589]
[1724268994199,0.1888,61440.0,61420.0,0.16400298]
[1724268994200,0.22351265,61439.0,61420.0,0.16400298]
[1724268994416,0.22351265,61439.0,61414.0,0.325655]
[1724268994417,0.4059,61430.0,61414.0,0.325655]
[1724268994626,0.4059,61422.0,61419.0,0.014]
[1724268994882,0.002,61437.0,61419.0,0.014]
[1724268994883,0.41590369,61458.0,61421.0,0.16400298]
[1724268995100,0.41590369,61458.0,61419.0,0.014]
[1724268995101,0.41590369,61458.0,61441.0,0.813696]
[1724268995302,0.00365672,61448.0,61442.0,0.162754]
[1724268995520,0.00365672,61448.0,61440.0,0.325518]
[1724268995521,0.00365672,61448.0,61443.0,0.162751]
[1724268995740,0.02552343,61447.0,61436.0,0.325537]
[1724268995958,0.5597,61446.0,61441.0,0.162756]
[1724268996176,0.5597,61446.0,61439.0,0.162762]
[1724268996406,0.5597,61446.0,61440.0,0.16276]
[1724268996621,0.5597,61446.0,61434.0,0.49229154]
[1724268996841,0.5597,61446.0,61445.0,0.162747]
[1724268997731,0.58522228,61446.0,61445.0,0.488241]
[1724268997942,0.58522228,61446.0,61420.0,0.4589]
[1724268998161,0.325525,61440.0,61429.0,0.49229154]
[1724268998369,0.16400298,61440.0,61422.0,0.325615]
[1724268998582,0.16400298,61440.0,61429.0,0.49229154]
[1724268998843,0.32676398,61440.0,61426.0,0.325594]
[1724268999056,0.02552824,61436.0,61432.0,0.162781]
[1724268999285,0.02552824,61436.0,61426.0,0.325594]
[1724268999286,0.77490298,61435.0,61426.0,0.325594]
[1724268999508,0.6109,61435.0,61430.0,0.162785]
[1724268999724,0.6109,61435.0,61421.0,0.49462298]
[1724268999928,0.6109,61435.0,61425.0,0.325599]
[1724269000135,0.6109,61435.0,61430.0,0.162786]
[1724269000359,0.6109,61435.0,61421.0,0.16900298]
[1724269000360,0.6109,61435.0,61434.0,0.162776]
[1724269000577,0.6109,61435.0,61434.0,0.488328]
[1724269001243,0.6109,61435.0,61433.0,0.162778]
[1724269001478,0.162777,61434.0,61429.0,0.002]
[1724269001713,0.162783,61432.0,61429.0,0.002]